{"text_format":"1","workbook":"xlsx","n_sheets":3,"sheets":["üNr","Urlaubsauswertung","Lotsen"],"not_rendered":{"charts":0,"images":0,"macros":1,"external_links":0,"defined_names":1,"comments":0,"pivot_tables":0},"unopened":[],"bounds":{"document_bytes":16777216,"sheet_cells":100000,"rows_first":2000,"rows_last":500,"rows_between":2000,"halvings":0,"cell_chars":16384,"cell_head_chars":4096},"cells_cut":0,"cells_raw":0,"read":"whole","date_system":"1900"}

{"sheet":"üNr","index":0,"n_rows":213,"n_cols":33,"rows_kept":213,"cut":false,"hidden":false,"merged":[[0,1,0,8],[2,1,3,1],[2,2,3,2],[2,5,3,5],[2,6,3,6],[2,7,2,8],[2,3,2,4]]}
[null,"Liste für Abteilungen mit übersprungenen Nummern"]
[null,null,null,null,null,null,null,null,"2025-01-01"]
[null,null,"Name","Abteilung",null,"Anzahl üNr.",null,"Zusammenfassung",null,null,"Abrechnung","Rest Nr."]
[null,null,null,"Datum","LN",null,null,"Namen","Nr. Gesamt","Urlaubstag","Monatsende","Mitnahme","U-Tag","Datum","U-Tag","Datum","U-Tag","Datum","U-Tag","Datum","U-Tag","Datum","U-Tag","Datum","U-Tag","Datum","U-Tag","Datum","U-Tag","Datum","U-Tag","Datum","Namen"]
[null,{"$f":"IF(C5=\"\",\"\",1)","v":1},3,"2025-02-04",62,{"$f":"IF(D5=\"\",\"\",E5-1)","v":61},null,{"$f":"IF(Lotsen!A2=\"\",\"\",Lotsen!A2)","v":1},{"$f":"SUMIF($C$5:$C$213,H5,$F$5:$F$213)+L5","v":0},{"$f":"IF(I5>=60,1,0)","v":0},{"$f":"IF(J5>0,I5-60,IF(J5=0,I5,0))","v":0},0,null,null,null,null,null,null,null,null,null,null,null,null,null,null,null,null,null,null,null,null,{"$f":"H5","v":1}]
[null,{"$f":"IF(C6=\"\",\"\",B5+1)","v":""},null,null,null,{"$f":"IF(D6=\"\",\"\",E6-1)","v":""},null,{"$f":"IF(Lotsen!A3=\"\",\"\",Lotsen!A3)","v":2},{"$f":"SUMIF($C$5:$C$213,H6,$F$5:$F$213)+L6","v":0},{"$f":"IF(I6>=60,1,0)","v":0},{"$f":"IF(J6>0,I6-60,IF(J6=0,I6,0))","v":0},0,null,null,null,null,"d","Datum","d","Datum","d","Datum","d","Datum","d","Datum","d","Datum","d","Datum","d","Datum",{"$f":"H6","v":2}]
[null,{"$f":"IF(C7=\"\",\"\",B6+1)","v":""},null,null,null,"",null,{"$f":"IF(Lotsen!A4=\"\",\"\",Lotsen!A4)","v":3},74,{"$f":"IF(I7>=60,1,0)","v":1},14,13,1,"23.01.25",1,"23.01.25",null,null,null,null,null,null,null,null,null,null,null,null,null,null,null,null,3]
[null,"",null,null,null,"",null,{"$f":"IF(Lotsen!A5=\"\",\"\",Lotsen!A5)","v":4},48,{"$f":"IF(I8>=60,1,0)","v":0},48,48,1,"23.01.25",null,null,null,null,null,null,null,null,null,null,null,null,null,null,null,null,null,null,4]
[null,"",null,null,null,"",null,{"$f":"IF(Lotsen!A6=\"\",\"\",Lotsen!A6)","v":5},0,{"$f":"IF(I9>=60,1,0)","v":0},0,0,null,null,null,null,null,null,null,null,null,null,null,null,null,null,null,null,null,null,null,null,5]
[null,"",null,null,null,"",null,{"$f":"IF(Lotsen!A7=\"\",\"\",Lotsen!A7)","v":6},0,0,0,0,null,null,null,null,null,null,null,null,null,null,null,null,null,null,null,null,null,null,null,null,6]
[null,"",null,null,null,"",null,{"$f":"IF(Lotsen!A8=\"\",\"\",Lotsen!A8)","v":7},0,0,0,0,null,null,null,null,null,null,null,null,null,null,null,null,null,null,null,null,null,null,null,null,7]
[null,"",null,null,null,"",null,{"$f":"IF(Lotsen!A9=\"\",\"\",Lotsen!A9)","v":8},0,0,0,0,null,null,null,null,null,null,null,null,null,null,null,null,null,null,null,null,null,null,null,null,8]
[null,"",null,null,null,"",null,{"$f":"IF(Lotsen!A10=\"\",\"\",Lotsen!A10)","v":9},0,0,0,0,null,null,null,null,null,null,null,null,null,null,null,null,null,null,null,null,null,null,null,null,9]
[null,"",null,null,null,"",null,{"$f":"IF(Lotsen!A11=\"\",\"\",Lotsen!A11)","v":10},0,0,0,0,null,null,null,null,null,null,null,null,null,null,null,null,null,null,null,null,null,null,null,null,10]
[null,"",null,null,null,"",null,{"$f":"IF(Lotsen!A12=\"\",\"\",Lotsen!A12)","v":""},0,0,0,0,null,null,null,null,null,null,null,null,null,null,null,null,null,null,null,null,null,null,null,null,""]
[null,"",null,null,null,"",null,{"$f":"IF(Lotsen!A13=\"\",\"\",Lotsen!A13)","v":""},0,0,0,0,null,null,null,null,null,null,null,null,null,null,null,null,null,null,null,null,null,null,null,null,""]
[null,"",null,null,null,"",null,{"$f":"IF(Lotsen!A14=\"\",\"\",Lotsen!A14)","v":""},0,0,0,0,null,null,null,null,null,null,null,null,null,null,null,null,null,null,null,null,null,null,null,null,""]
[null,"",null,null,null,"",null,{"$f":"IF(Lotsen!A15=\"\",\"\",Lotsen!A15)","v":""},0,0,0,0,null,null,null,null,null,null,null,null,null,null,null,null,null,null,null,null,null,null,null,null,""]
[null,"",null,null,null,"",null,{"$f":"IF(Lotsen!A16=\"\",\"\",Lotsen!A16)","v":""},0,0,0,0,null,null,null,null,null,null,null,null,null,null,null,null,null,null,null,null,null,null,null,null,""]
[null,"",null,null,null,"",null,{"$f":"IF(Lotsen!A17=\"\",\"\",Lotsen!A17)","v":""},0,0,0,0,null,null,null,null,null,null,null,null,null,null,null,null,null,null,null,null,null,null,null,null,""]
[null,"",null,null,null,"",null,{"$f":"IF(Lotsen!A18=\"\",\"\",Lotsen!A18)","v":""},0,0,0,0,null,null,null,null,null,null,null,null,null,null,null,null,null,null,null,null,null,null,null,null,""]
[null,"",null,null,null,"",null,{"$f":"IF(Lotsen!A19=\"\",\"\",Lotsen!A19)","v":""},0,0,0,0,null,null,null,null,null,null,null,null,null,null,null,null,null,null,null,null,null,null,null,null,""]
[null,"",null,null,null,"",null,{"$f":"IF(Lotsen!A20=\"\",\"\",Lotsen!A20)","v":""},0,0,0,0,null,null,null,null,null,null,null,null,null,null,null,null,null,null,null,null,null,null,null,null,""]
[null,"",null,null,null,"",null,{"$f":"IF(Lotsen!A21=\"\",\"\",Lotsen!A21)","v":""},0,0,0,0,null,null,null,null,null,null,null,null,null,null,null,null,null,null,null,null,null,null,null,null,""]
[null,"",null,null,null,"",null,{"$f":"IF(Lotsen!A22=\"\",\"\",Lotsen!A22)","v":""},0,0,0,0,null,null,null,null,null,null,null,null,null,null,null,null,null,null,null,null,null,null,null,null,""]
[null,"",null,null,null,"",null,{"$f":"IF(Lotsen!A23=\"\",\"\",Lotsen!A23)","v":""},0,0,0,0,null,null,null,null,null,null,null,null,null,null,null,null,null,null,null,null,null,null,null,null,""]
[null,"",null,null,null,"",null,{"$f":"IF(Lotsen!A24=\"\",\"\",Lotsen!A24)","v":""},0,0,0,0,null,null,null,null,null,null,null,null,null,null,null,null,null,null,null,null,null,null,null,null,""]
[null,"",null,null,null,"",null,{"$f":"IF(Lotsen!A25=\"\",\"\",Lotsen!A25)","v":""},0,0,0,0,null,null,null,null,null,null,null,null,null,null,null,null,null,null,null,null,null,null,null,null,""]
[null,"",null,null,null,"",null,{"$f":"IF(Lotsen!A26=\"\",\"\",Lotsen!A26)","v":""},0,0,0,0,null,null,null,null,null,null,null,null,null,null,null,null,null,null,null,null,null,null,null,null,""]
[null,"",null,null,null,"",null,{"$f":"IF(Lotsen!A27=\"\",\"\",Lotsen!A27)","v":""},0,0,0,0,null,null,null,null,null,null,null,null,null,null,null,null,null,null,null,null,null,null,null,null,""]
[null,"",null,null,null,"",null,{"$f":"IF(Lotsen!A28=\"\",\"\",Lotsen!A28)","v":""},0,0,0,0,null,null,null,null,null,null,null,null,null,null,null,null,null,null,null,null,null,null,null,null,""]
[null,"",null,null,null,"",null,{"$f":"IF(Lotsen!A29=\"\",\"\",Lotsen!A29)","v":""},0,0,0,0,null,null,null,null,null,null,null,null,null,null,null,null,null,null,null,null,null,null,null,null,""]
[null,"",null,null,null,"",null,{"$f":"IF(Lotsen!A30=\"\",\"\",Lotsen!A30)","v":""},0,0,0,0,null,null,null,null,null,null,null,null,null,null,null,null,null,null,null,null,null,null,null,null,""]
[null,"",null,null,null,"",null,{"$f":"IF(Lotsen!A31=\"\",\"\",Lotsen!A31)","v":""},0,0,0,0,null,null,null,null,null,null,null,null,null,null,null,null,null,null,null,null,null,null,null,null,""]
[null,"",null,null,null,"",null,{"$f":"IF(Lotsen!A32=\"\",\"\",Lotsen!A32)","v":""},0,0,0,0,null,null,null,null,null,null,null,null,null,null,null,null,null,null,null,null,null,null,null,null,""]
[null,"",null,null,null,"",null,{"$f":"IF(Lotsen!A33=\"\",\"\",Lotsen!A33)","v":""},0,0,0,0,null,null,null,null,null,null,null,null,null,null,null,null,null,null,null,null,null,null,null,null,""]
[null,"",null,null,null,"",null,{"$f":"IF(Lotsen!A34=\"\",\"\",Lotsen!A34)","v":""},0,0,0,0,null,null,null,null,null,null,null,null,null,null,null,null,null,null,null,null,null,null,null,null,""]
[null,"",null,null,null,"",null,{"$f":"IF(Lotsen!A35=\"\",\"\",Lotsen!A35)","v":""},0,0,0,0,null,null,null,null,null,null,null,null,null,null,null,null,null,null,null,null,null,null,null,null,""]
[null,"",null,null,null,"",null,{"$f":"IF(Lotsen!A36=\"\",\"\",Lotsen!A36)","v":""},0,0,0,0,null,null,null,null,null,null,null,null,null,null,null,null,null,null,null,null,null,null,null,null,""]
[null,"",null,null,null,"",null,{"$f":"IF(Lotsen!A37=\"\",\"\",Lotsen!A37)","v":""},0,0,0,0,null,null,null,null,null,null,null,null,null,null,null,null,null,null,null,null,null,null,null,null,""]
[null,"",null,null,null,"",null,{"$f":"IF(Lotsen!A38=\"\",\"\",Lotsen!A38)","v":""},0,0,0,0,null,null,null,null,null,null,null,null,null,null,null,null,null,null,null,null,null,null,null,null,""]
[null,"",null,null,null,"",null,{"$f":"IF(Lotsen!A39=\"\",\"\",Lotsen!A39)","v":""},0,0,0,0,null,null,null,null,null,null,null,null,null,null,null,null,null,null,null,null,null,null,null,null,""]
[null,"",null,null,null,"",null,{"$f":"IF(Lotsen!A40=\"\",\"\",Lotsen!A40)","v":""},0,0,0,0,null,null,null,null,null,null,null,null,null,null,null,null,null,null,null,null,null,null,null,null,""]
[null,"",null,null,null,"",null,{"$f":"IF(Lotsen!A41=\"\",\"\",Lotsen!A41)","v":""},0,0,0,0,null,null,null,null,null,null,null,null,null,null,null,null,null,null,null,null,null,null,null,null,""]
[null,"",null,null,null,"",null,{"$f":"IF(Lotsen!A42=\"\",\"\",Lotsen!A42)","v":""},0,0,0,0,null,null,null,null,null,null,null,null,null,null,null,null,null,null,null,null,null,null,null,null,""]
[null,"",null,null,null,"",null,{"$f":"IF(Lotsen!A43=\"\",\"\",Lotsen!A43)","v":""},0,0,0,0,null,null,null,null,null,null,null,null,null,null,null,null,null,null,null,null,null,null,null,null,""]
[null,"",null,null,null,"",null,{"$f":"IF(Lotsen!A44=\"\",\"\",Lotsen!A44)","v":""},0,0,0,0,null,null,null,null,null,null,null,null,null,null,null,null,null,null,null,null,null,null,null,null,""]
[null,"",null,null,null,"",null,{"$f":"IF(Lotsen!A45=\"\",\"\",Lotsen!A45)","v":""},0,0,0,0,null,null,null,null,null,null,null,null,null,null,null,null,null,null,null,null,null,null,null,null,""]
[null,"",null,null,null,"",null,{"$f":"IF(Lotsen!A46=\"\",\"\",Lotsen!A46)","v":""},0,0,0,0,null,null,null,null,null,null,null,null,null,null,null,null,null,null,null,null,null,null,null,null,""]
[null,"",null,null,null,"",null,{"$f":"IF(Lotsen!A47=\"\",\"\",Lotsen!A47)","v":""},0,0,0,0,null,null,null,null,null,null,null,null,null,null,null,null,null,null,null,null,null,null,null,null,""]
[null,"",null,null,null,"",null,{"$f":"IF(Lotsen!A48=\"\",\"\",Lotsen!A48)","v":""},0,0,0,0,null,null,null,null,null,null,null,null,null,null,null,null,null,null,null,null,null,null,null,null,""]
[null,"",null,null,null,"",null,{"$f":"IF(Lotsen!A49=\"\",\"\",Lotsen!A49)","v":""},0,0,0,0,null,null,null,null,null,null,null,null,null,null,null,null,null,null,null,null,null,null,null,null,""]
[null,"",null,null,null,"",null,{"$f":"IF(Lotsen!A50=\"\",\"\",Lotsen!A50)","v":""},0,0,0,0,null,null,null,null,null,null,null,null,null,null,null,null,null,null,null,null,null,null,null,null,""]
[null,"",null,null,null,"",null,{"$f":"IF(Lotsen!A51=\"\",\"\",Lotsen!A51)","v":""},0,0,0,0,null,null,null,null,null,null,null,null,null,null,null,null,null,null,null,null,null,null,null,null,""]
[null,"",null,null,null,"",null,{"$f":"IF(Lotsen!A52=\"\",\"\",Lotsen!A52)","v":""},0,0,0,0,null,null,null,null,null,null,null,null,null,null,null,null,null,null,null,null,null,null,null,null,""]
[null,"",null,null,null,"",null,{"$f":"IF(Lotsen!A53=\"\",\"\",Lotsen!A53)","v":""},0,0,0,0,null,null,null,null,null,null,null,null,null,null,null,null,null,null,null,null,null,null,null,null,""]
[null,"",null,null,null,"",null,{"$f":"IF(Lotsen!A54=\"\",\"\",Lotsen!A54)","v":""},0,0,0,0,null,null,null,null,null,null,null,null,null,null,null,null,null,null,null,null,null,null,null,null,""]
[null,"",null,null,null,"",null,{"$f":"IF(Lotsen!A55=\"\",\"\",Lotsen!A55)","v":""},0,0,0,0,null,null,null,null,null,null,null,null,null,null,null,null,null,null,null,null,null,null,null,null,""]
[null,"",null,null,null,"",null,{"$f":"IF(Lotsen!A56=\"\",\"\",Lotsen!A56)","v":""},0,0,0,0,null,null,null,null,null,null,null,null,null,null,null,null,null,null,null,null,null,null,null,null,""]
[null,"",null,null,null,"",null,{"$f":"IF(Lotsen!A57=\"\",\"\",Lotsen!A57)","v":""},0,0,0,0,null,null,null,null,null,null,null,null,null,null,null,null,null,null,null,null,null,null,null,null,""]
[null,"",null,null,null,"",null,{"$f":"IF(Lotsen!A58=\"\",\"\",Lotsen!A58)","v":""},0,0,0,0,null,null,null,null,null,null,null,null,null,null,null,null,null,null,null,null,null,null,null,null,""]
[null,"",null,null,null,"",null,{"$f":"IF(Lotsen!A59=\"\",\"\",Lotsen!A59)","v":""},0,0,0,0,null,null,null,null,null,null,null,null,null,null,null,null,null,null,null,null,null,null,null,null,""]
[null,"",null,null,null,"",null,{"$f":"IF(Lotsen!A60=\"\",\"\",Lotsen!A60)","v":""},0,0,0,0,null,null,null,null,null,null,null,null,null,null,null,null,null,null,null,null,null,null,null,null,""]
[null,"",null,null,null,"",null,{"$f":"IF(Lotsen!A61=\"\",\"\",Lotsen!A61)","v":""},0,0,0,0,null,null,null,null,null,null,null,null,null,null,null,null,null,null,null,null,null,null,null,null,""]
[null,"",null,null,null,"",null,{"$f":"IF(Lotsen!A62=\"\",\"\",Lotsen!A62)","v":""},0,0,0,0,null,null,null,null,null,null,null,null,null,null,null,null,null,null,null,null,null,null,null,null,""]
[null,"",null,null,null,"",null,{"$f":"IF(Lotsen!A63=\"\",\"\",Lotsen!A63)","v":""},0,0,0,0,null,null,null,null,null,null,null,null,null,null,null,null,null,null,null,null,null,null,null,null,""]
[null,"",null,null,null,"",null,{"$f":"IF(Lotsen!A64=\"\",\"\",Lotsen!A64)","v":""},0,0,0,0,null,null,null,null,null,null,null,null,null,null,null,null,null,null,null,null,null,null,null,null,""]
[null,"",null,null,null,"",null,{"$f":"IF(Lotsen!A65=\"\",\"\",Lotsen!A65)","v":""},0,0,0,0,null,null,null,null,null,null,null,null,null,null,null,null,null,null,null,null,null,null,null,null,""]
[null,"",null,null,null,"",null,{"$f":"IF(Lotsen!A66=\"\",\"\",Lotsen!A66)","v":""},0,0,0,0,null,null,null,null,null,null,null,null,null,null,null,null,null,null,null,null,null,null,null,null,""]
[null,"",null,null,null,{"$f":"IF(D70=\"\",\"\",E70-1)","v":""},null,{"$f":"IF(Lotsen!A67=\"\",\"\",Lotsen!A67)","v":""},{"$f":"SUMIF($C$5:$C$213,H70,$F$5:$F$213)+L70","v":0},0,{"$f":"IF(J70>0,I70-60,IF(J70=0,I70,0))","v":0},0,null,null,null,null,null,null,null,null,null,null,null,null,null,null,null,null,null,null,null,null,{"$f":"H70","v":""}]
[null,{"$f":"IF(C71=\"\",\"\",B70+1)","v":""},null,null,null,"",null,{"$f":"IF(Lotsen!A68=\"\",\"\",Lotsen!A68)","v":""},0,0,0,0,null,null,null,null,null,null,null,null,null,null,null,null,null,null,null,null,null,null,null,null,""]
[null,"",null,null,null,"",null,{"$f":"IF(Lotsen!A69=\"\",\"\",Lotsen!A69)","v":""},0,0,0,0,null,null,null,null,null,null,null,null,null,null,null,null,null,null,null,null,null,null,null,null,""]
[null,"",null,null,null,"",null,{"$f":"IF(Lotsen!A70=\"\",\"\",Lotsen!A70)","v":""},0,{"$f":"IF(I73>=60,1,0)","v":0},0,0,null,null,null,null,null,null,null,null,null,null,null,null,null,null,null,null,null,null,null,null,""]
[null,"",null,null,null,"",null,{"$f":"IF(Lotsen!A71=\"\",\"\",Lotsen!A71)","v":""},0,0,0,0,null,null,null,null,null,null,null,null,null,null,null,null,null,null,null,null,null,null,null,null,""]
[null,"",null,null,null,"",null,{"$f":"IF(Lotsen!A72=\"\",\"\",Lotsen!A72)","v":""},0,0,0,0,null,null,null,null,null,null,null,null,null,null,null,null,null,null,null,null,null,null,null,null,""]
[null,"",null,null,null,"",null,{"$f":"IF(Lotsen!A73=\"\",\"\",Lotsen!A73)","v":""},0,0,0,0,null,null,null,null,null,null,null,null,null,null,null,null,null,null,null,null,null,null,null,null,""]
[null,"",null,null,null,"",null,{"$f":"IF(Lotsen!A74=\"\",\"\",Lotsen!A74)","v":""},0,0,0,0,null,null,null,null,null,null,null,null,null,null,null,null,null,null,null,null,null,null,null,null,""]
[null,"",null,null,null,"",null,{"$f":"IF(Lotsen!A75=\"\",\"\",Lotsen!A75)","v":""},0,0,0,0,null,null,null,null,null,null,null,null,null,null,null,null,null,null,null,null,null,null,null,null,""]
[null,"",null,null,null,"",null,{"$f":"IF(Lotsen!A76=\"\",\"\",Lotsen!A76)","v":""},0,0,0,0,null,null,null,null,null,null,null,null,null,null,null,null,null,null,null,null,null,null,null,null,""]
[null,"",null,null,null,"",null,{"$f":"IF(Lotsen!A77=\"\",\"\",Lotsen!A77)","v":""},0,0,0,0,null,null,null,null,null,null,null,null,null,null,null,null,null,null,null,null,null,null,null,null,""]
[null,"",null,null,null,"",null,{"$f":"IF(Lotsen!A78=\"\",\"\",Lotsen!A78)","v":""},0,0,0,0,null,null,null,null,null,null,null,null,null,null,null,null,null,null,null,null,null,null,null,null,""]
[null,"",null,null,null,"",null,{"$f":"IF(Lotsen!A79=\"\",\"\",Lotsen!A79)","v":""},0,0,0,0,null,null,null,null,null,null,null,null,null,null,null,null,null,null,null,null,null,null,null,null,""]
[null,"",null,null,null,"",null,{"$f":"IF(Lotsen!A80=\"\",\"\",Lotsen!A80)","v":""},0,0,0,0,null,null,null,null,null,null,null,null,null,null,null,null,null,null,null,null,null,null,null,null,""]
[null,"",null,null,null,"",null,{"$f":"IF(Lotsen!A81=\"\",\"\",Lotsen!A81)","v":""},0,0,0,0,null,null,null,null,null,null,null,null,null,null,null,null,null,null,null,null,null,null,null,null,""]
[null,"",null,null,null,"",null,{"$f":"IF(Lotsen!A82=\"\",\"\",Lotsen!A82)","v":""},0,0,0,0,null,null,null,null,null,null,null,null,null,null,null,null,null,null,null,null,null,null,null,null,""]
[null,"",null,null,null,"",null,{"$f":"IF(Lotsen!A83=\"\",\"\",Lotsen!A83)","v":""},0,0,0,0,null,null,null,null,null,null,null,null,null,null,null,null,null,null,null,null,null,null,null,null,""]
[null,"",null,null,null,"",null,{"$f":"IF(Lotsen!A84=\"\",\"\",Lotsen!A84)","v":""},0,0,0,0,null,null,null,null,null,null,null,null,null,null,null,null,null,null,null,null,null,null,null,null,""]
[null,"",null,null,null,"",null,{"$f":"IF(Lotsen!A85=\"\",\"\",Lotsen!A85)","v":""},0,0,0,0,null,null,null,null,null,null,null,null,null,null,null,null,null,null,null,null,null,null,null,null,""]
[null,"",null,null,null,"",null,{"$f":"IF(Lotsen!A86=\"\",\"\",Lotsen!A86)","v":""},0,0,0,0,null,null,null,null,null,null,null,null,null,null,null,null,null,null,null,null,null,null,null,null,""]
[null,"",null,null,null,"",null,{"$f":"IF(Lotsen!A87=\"\",\"\",Lotsen!A87)","v":""},0,0,0,0,null,null,null,null,null,null,null,null,null,null,null,null,null,null,null,null,null,null,null,null,""]
[null,"",null,null,null,"",null,{"$f":"IF(Lotsen!A88=\"\",\"\",Lotsen!A88)","v":""},0,0,0,0,null,null,null,null,null,null,null,null,null,null,null,null,null,null,null,null,null,null,null,null,""]
[null,"",null,null,null,"",null,{"$f":"IF(Lotsen!A89=\"\",\"\",Lotsen!A89)","v":""},0,0,0,0,null,null,null,null,null,null,null,null,null,null,null,null,null,null,null,null,null,null,null,null,""]
[null,"",null,null,null,"",null,{"$f":"IF(Lotsen!A90=\"\",\"\",Lotsen!A90)","v":""},0,0,0,0,null,null,null,null,null,null,null,null,null,null,null,null,null,null,null,null,null,null,null,null,""]
[null,"",null,null,null,"",null,{"$f":"IF(Lotsen!A91=\"\",\"\",Lotsen!A91)","v":""},0,0,0,0,null,null,null,null,null,null,null,null,null,null,null,null,null,null,null,null,null,null,null,null,""]
[null,"",null,null,null,"",null,{"$f":"IF(Lotsen!A92=\"\",\"\",Lotsen!A92)","v":""},0,0,0,0,null,null,null,null,null,null,null,null,null,null,null,null,null,null,null,null,null,null,null,null,""]
[null,"",null,null,null,"",null,{"$f":"IF(Lotsen!A93=\"\",\"\",Lotsen!A93)","v":""},0,0,0,0,null,null,null,null,null,null,null,null,null,null,null,null,null,null,null,null,null,null,null,null,""]
[null,"",null,null,null,"",null,{"$f":"IF(Lotsen!A94=\"\",\"\",Lotsen!A94)","v":""},0,0,0,0,null,null,null,null,null,null,null,null,null,null,null,null,null,null,null,null,null,null,null,null,""]
[null,"",null,null,null,"",null,{"$f":"IF(Lotsen!A95=\"\",\"\",Lotsen!A95)","v":""},0,0,0,0,null,null,null,null,null,null,null,null,null,null,null,null,null,null,null,null,null,null,null,null,""]
[null,"",null,null,null,"",null,{"$f":"IF(Lotsen!A96=\"\",\"\",Lotsen!A96)","v":""},0,0,0,0,null,null,null,null,null,null,null,null,null,null,null,null,null,null,null,null,null,null,null,null,""]
[null,"",null,null,null,"",null,{"$f":"IF(Lotsen!A97=\"\",\"\",Lotsen!A97)","v":""},0,0,0,0,null,null,null,null,null,null,null,null,null,null,null,null,null,null,null,null,null,null,null,null,""]
[null,"",null,null,null,"",null,{"$f":"IF(Lotsen!A98=\"\",\"\",Lotsen!A98)","v":""},0,0,0,0,null,null,null,null,null,null,null,null,null,null,null,null,null,null,null,null,null,null,null,null,""]
[null,"",null,null,null,"",null,{"$f":"IF(Lotsen!A99=\"\",\"\",Lotsen!A99)","v":""},0,0,0,0,null,null,null,null,null,null,null,null,null,null,null,null,null,null,null,null,null,null,null,null,""]
[null,"",null,null,null,"",null,{"$f":"IF(Lotsen!A100=\"\",\"\",Lotsen!A100)","v":""},0,0,0,0,null,null,null,null,null,null,null,null,null,null,null,null,null,null,null,null,null,null,null,null,""]
[null,"",null,null,null,"",null,{"$f":"IF(Lotsen!A101=\"\",\"\",Lotsen!A101)","v":""},0,0,0,0,null,null,null,null,null,null,null,null,null,null,null,null,null,null,null,null,null,null,null,null,""]
[null,"",null,null,null,"",null,{"$f":"IF(Lotsen!A102=\"\",\"\",Lotsen!A102)","v":""},0,0,0,0,null,null,null,null,null,null,null,null,null,null,null,null,null,null,null,null,null,null,null,null,""]
[null,"",null,null,null,"",null,{"$f":"IF(Lotsen!A103=\"\",\"\",Lotsen!A103)","v":""},0,0,0,0,null,null,null,null,null,null,null,null,null,null,null,null,null,null,null,null,null,null,null,null,""]
[null,"",null,null,null,"",null,{"$f":"IF(Lotsen!A104=\"\",\"\",Lotsen!A104)","v":""},0,0,0,0,null,null,null,null,null,null,null,null,null,null,null,null,null,null,null,null,null,null,null,null,""]
[null,"",null,null,null,"",null,{"$f":"IF(Lotsen!A105=\"\",\"\",Lotsen!A105)","v":""},0,0,0,0,null,null,null,null,null,null,null,null,null,null,null,null,null,null,null,null,null,null,null,null,""]
[null,"",null,null,null,"",null,{"$f":"IF(Lotsen!A106=\"\",\"\",Lotsen!A106)","v":""},0,0,0,0,null,null,null,null,null,null,null,null,null,null,null,null,null,null,null,null,null,null,null,null,""]
[null,"",null,null,null,"",null,{"$f":"IF(Lotsen!A107=\"\",\"\",Lotsen!A107)","v":""},0,0,0,0,null,null,null,null,null,null,null,null,null,null,null,null,null,null,null,null,null,null,null,null,""]
[null,"",null,null,null,"",null,{"$f":"IF(Lotsen!A108=\"\",\"\",Lotsen!A108)","v":""},0,0,0,0,null,null,null,null,null,null,null,null,null,null,null,null,null,null,null,null,null,null,null,null,""]
[null,"",null,null,null,"",null,{"$f":"IF(Lotsen!A109=\"\",\"\",Lotsen!A109)","v":""},0,0,0,0,null,null,null,null,null,null,null,null,null,null,null,null,null,null,null,null,null,null,null,null,""]
[null,"",null,null,null,"",null,{"$f":"IF(Lotsen!A110=\"\",\"\",Lotsen!A110)","v":""},0,0,0,0,null,null,null,null,null,null,null,null,null,null,null,null,null,null,null,null,null,null,null,null,""]
[null,"",null,null,null,"",null,{"$f":"IF(Lotsen!A111=\"\",\"\",Lotsen!A111)","v":""},0,0,0,0,null,null,null,null,null,null,null,null,null,null,null,null,null,null,null,null,null,null,null,null,""]
[null,"",null,null,null,"",null,{"$f":"IF(Lotsen!A112=\"\",\"\",Lotsen!A112)","v":""},0,0,0,0,null,null,null,null,null,null,null,null,null,null,null,null,null,null,null,null,null,null,null,null,""]
[null,"",null,null,null,"",null,{"$f":"IF(Lotsen!A113=\"\",\"\",Lotsen!A113)","v":""},0,0,0,0,null,null,null,null,null,null,null,null,null,null,null,null,null,null,null,null,null,null,null,null,""]
[null,"",null,null,null,"",null,{"$f":"IF(Lotsen!A114=\"\",\"\",Lotsen!A114)","v":""},0,0,0,0,null,null,null,null,null,null,null,null,null,null,null,null,null,null,null,null,null,null,null,null,""]
[null,"",null,null,null,"",null,{"$f":"IF(Lotsen!A115=\"\",\"\",Lotsen!A115)","v":""},0,0,0,0,null,null,null,null,null,null,null,null,null,null,null,null,null,null,null,null,null,null,null,null,""]
[null,"",null,null,null,"",null,{"$f":"IF(Lotsen!A116=\"\",\"\",Lotsen!A116)","v":""},0,0,0,0,null,null,null,null,null,null,null,null,null,null,null,null,null,null,null,null,null,null,null,null,""]
[null,"",null,null,null,"",null,{"$f":"IF(Lotsen!A117=\"\",\"\",Lotsen!A117)","v":""},0,0,0,0,null,null,null,null,null,null,null,null,null,null,null,null,null,null,null,null,null,null,null,null,""]
[null,"",null,null,null,"",null,{"$f":"IF(Lotsen!A118=\"\",\"\",Lotsen!A118)","v":""},0,0,0,0,null,null,null,null,null,null,null,null,null,null,null,null,null,null,null,null,null,null,null,null,""]
[null,"",null,null,null,"",null,{"$f":"IF(Lotsen!A119=\"\",\"\",Lotsen!A119)","v":""},0,0,0,0,null,null,null,null,null,null,null,null,null,null,null,null,null,null,null,null,null,null,null,null,""]
[null,"",null,null,null,"",null,{"$f":"IF(Lotsen!A120=\"\",\"\",Lotsen!A120)","v":""},0,0,0,0,null,null,null,null,null,null,null,null,null,null,null,null,null,null,null,null,null,null,null,null,""]
[null,"",null,null,null,"",null,{"$f":"IF(Lotsen!A121=\"\",\"\",Lotsen!A121)","v":""},0,0,0,0,null,null,null,null,null,null,null,null,null,null,null,null,null,null,null,null,null,null,null,null,""]
[null,"",null,null,null,"",null,{"$f":"IF(Lotsen!A122=\"\",\"\",Lotsen!A122)","v":""},0,0,0,0,null,null,null,null,null,null,null,null,null,null,null,null,null,null,null,null,null,null,null,null,""]
[null,"",null,null,null,"",null,{"$f":"IF(Lotsen!A123=\"\",\"\",Lotsen!A123)","v":""},0,0,0,0,null,null,null,null,null,null,null,null,null,null,null,null,null,null,null,null,null,null,null,null,""]
[null,"",null,null,null,"",null,{"$f":"IF(Lotsen!A124=\"\",\"\",Lotsen!A124)","v":""},0,0,0,0,null,null,null,null,null,null,null,null,null,null,null,null,null,null,null,null,null,null,null,null,""]
[null,"",null,null,null,"",null,{"$f":"IF(Lotsen!A125=\"\",\"\",Lotsen!A125)","v":""},0,0,0,0,null,null,null,null,null,null,null,null,null,null,null,null,null,null,null,null,null,null,null,null,""]
[null,"",null,null,null,"",null,{"$f":"IF(Lotsen!A126=\"\",\"\",Lotsen!A126)","v":""},0,0,0,0,null,null,null,null,null,null,null,null,null,null,null,null,null,null,null,null,null,null,null,null,""]
[null,"",null,null,null,"",null,{"$f":"IF(Lotsen!A127=\"\",\"\",Lotsen!A127)","v":""},0,0,0,0,null,null,null,null,null,null,null,null,null,null,null,null,null,null,null,null,null,null,null,null,""]
[null,"",null,null,null,"",null,{"$f":"IF(Lotsen!A128=\"\",\"\",Lotsen!A128)","v":""},0,0,0,0,null,null,null,null,null,null,null,null,null,null,null,null,null,null,null,null,null,null,null,null,""]
[null,"",null,null,null,"",null,{"$f":"IF(Lotsen!A129=\"\",\"\",Lotsen!A129)","v":""},0,0,0,0,null,null,null,null,null,null,null,null,null,null,null,null,null,null,null,null,null,null,null,null,""]
[null,"",null,null,null,"",null,{"$f":"IF(Lotsen!A130=\"\",\"\",Lotsen!A130)","v":""},0,0,0,0,null,null,null,null,null,null,null,null,null,null,null,null,null,null,null,null,null,null,null,null,""]
[null,"",null,null,null,{"$f":"IF(D134=\"\",\"\",E134-1)","v":""},null,{"$f":"IF(Lotsen!A131=\"\",\"\",Lotsen!A131)","v":""},{"$f":"SUMIF($C$5:$C$213,H134,$F$5:$F$213)+L134","v":0},0,{"$f":"IF(J134>0,I134-60,IF(J134=0,I134,0))","v":0},0,null,null,null,null,null,null,null,null,null,null,null,null,null,null,null,null,null,null,null,null,{"$f":"H134","v":""}]
[null,{"$f":"IF(C135=\"\",\"\",B134+1)","v":""},null,null,null,"",null,{"$f":"IF(Lotsen!A132=\"\",\"\",Lotsen!A132)","v":""},0,0,0,0,null,null,null,null,null,null,null,null,null,null,null,null,null,null,null,null,null,null,null,null,""]
[null,"",null,null,null,"",null,{"$f":"IF(Lotsen!A133=\"\",\"\",Lotsen!A133)","v":""},0,0,0,0,null,null,null,null,null,null,null,null,null,null,null,null,null,null,null,null,null,null,null,null,""]
[null,"",null,null,null,"",null,{"$f":"IF(Lotsen!A134=\"\",\"\",Lotsen!A134)","v":""},0,{"$f":"IF(I137>=60,1,0)","v":0},0,0,null,null,null,null,null,null,null,null,null,null,null,null,null,null,null,null,null,null,null,null,""]
[null,"",null,null,null,"",null,{"$f":"IF(Lotsen!A135=\"\",\"\",Lotsen!A135)","v":""},0,0,0,0,null,null,null,null,null,null,null,null,null,null,null,null,null,null,null,null,null,null,null,null,""]
[null,"",null,null,null,"",null,{"$f":"IF(Lotsen!A136=\"\",\"\",Lotsen!A136)","v":""},0,0,0,0,null,null,null,null,null,null,null,null,null,null,null,null,null,null,null,null,null,null,null,null,""]
[null,"",null,null,null,"",null,{"$f":"IF(Lotsen!A137=\"\",\"\",Lotsen!A137)","v":""},0,0,0,0,null,null,null,null,null,null,null,null,null,null,null,null,null,null,null,null,null,null,null,null,""]
[null,"",null,null,null,"",null,{"$f":"IF(Lotsen!A138=\"\",\"\",Lotsen!A138)","v":""},0,0,0,0,null,null,null,null,null,null,null,null,null,null,null,null,null,null,null,null,null,null,null,null,""]
[null,"",null,null,null,"",null,{"$f":"IF(Lotsen!A139=\"\",\"\",Lotsen!A139)","v":""},0,0,0,0,null,null,null,null,null,null,null,null,null,null,null,null,null,null,null,null,null,null,null,null,""]
[null,"",null,null,null,"",null,{"$f":"IF(Lotsen!A140=\"\",\"\",Lotsen!A140)","v":""},0,0,0,0,null,null,null,null,null,null,null,null,null,null,null,null,null,null,null,null,null,null,null,null,""]
[null,"",null,null,null,"",null,{"$f":"IF(Lotsen!A141=\"\",\"\",Lotsen!A141)","v":""},0,0,0,0,null,null,null,null,null,null,null,null,null,null,null,null,null,null,null,null,null,null,null,null,""]
[null,"",null,null,null,"",null,{"$f":"IF(Lotsen!A142=\"\",\"\",Lotsen!A142)","v":""},0,0,0,0,null,null,null,null,null,null,null,null,null,null,null,null,null,null,null,null,null,null,null,null,""]
[null,"",null,null,null,"",null,{"$f":"IF(Lotsen!A143=\"\",\"\",Lotsen!A143)","v":""},0,0,0,0,null,null,null,null,null,null,null,null,null,null,null,null,null,null,null,null,null,null,null,null,""]
[null,"",null,null,null,"",null,{"$f":"IF(Lotsen!A144=\"\",\"\",Lotsen!A144)","v":""},0,0,0,0,null,null,null,null,null,null,null,null,null,null,null,null,null,null,null,null,null,null,null,null,""]
[null,"",null,null,null,"",null,{"$f":"IF(Lotsen!A145=\"\",\"\",Lotsen!A145)","v":""},0,0,0,0,null,null,null,null,null,null,null,null,null,null,null,null,null,null,null,null,null,null,null,null,""]
[null,"",null,null,null,"",null,{"$f":"IF(Lotsen!A146=\"\",\"\",Lotsen!A146)","v":""},0,0,0,0,null,null,null,null,null,null,null,null,null,null,null,null,null,null,null,null,null,null,null,null,""]
[null,"",null,null,null,"",null,{"$f":"IF(Lotsen!A147=\"\",\"\",Lotsen!A147)","v":""},0,0,0,0,null,null,null,null,null,null,null,null,null,null,null,null,null,null,null,null,null,null,null,null,""]
[null,"",null,null,null,"",null,{"$f":"IF(Lotsen!A148=\"\",\"\",Lotsen!A148)","v":""},0,0,0,0,null,null,null,null,null,null,null,null,null,null,null,null,null,null,null,null,null,null,null,null,""]
[null,"",null,null,null,"",null,{"$f":"IF(Lotsen!A149=\"\",\"\",Lotsen!A149)","v":""},0,0,0,0,null,null,null,null,null,null,null,null,null,null,null,null,null,null,null,null,null,null,null,null,""]
[null,"",null,null,null,"",null,{"$f":"IF(Lotsen!A150=\"\",\"\",Lotsen!A150)","v":""},0,0,0,0,null,null,null,null,null,null,null,null,null,null,null,null,null,null,null,null,null,null,null,null,""]
[null,"",null,null,null,"",null,{"$f":"IF(Lotsen!A151=\"\",\"\",Lotsen!A151)","v":""},0,0,0,0,null,null,null,null,null,null,null,null,null,null,null,null,null,null,null,null,null,null,null,null,""]
[null,"",null,null,null,"",null,{"$f":"IF(Lotsen!A152=\"\",\"\",Lotsen!A152)","v":""},0,0,0,0,null,null,null,null,null,null,null,null,null,null,null,null,null,null,null,null,null,null,null,null,""]
[null,"",null,null,null,"",null,{"$f":"IF(Lotsen!A153=\"\",\"\",Lotsen!A153)","v":""},0,0,0,0,null,null,null,null,null,null,null,null,null,null,null,null,null,null,null,null,null,null,null,null,""]
[null,"",null,null,null,"",null,{"$f":"IF(Lotsen!A154=\"\",\"\",Lotsen!A154)","v":""},0,0,0,0,null,null,null,null,null,null,null,null,null,null,null,null,null,null,null,null,null,null,null,null,""]
[null,"",null,null,null,"",null,{"$f":"IF(Lotsen!A155=\"\",\"\",Lotsen!A155)","v":""},0,0,0,0,null,null,null,null,null,null,null,null,null,null,null,null,null,null,null,null,null,null,null,null,""]
[null,"",null,null,null,"",null,{"$f":"IF(Lotsen!A156=\"\",\"\",Lotsen!A156)","v":""},0,0,0,0,null,null,null,null,null,null,null,null,null,null,null,null,null,null,null,null,null,null,null,null,""]
[null,"",null,null,null,"",null,{"$f":"IF(Lotsen!A157=\"\",\"\",Lotsen!A157)","v":""},0,0,0,0,null,null,null,null,null,null,null,null,null,null,null,null,null,null,null,null,null,null,null,null,""]
[null,"",null,null,null,"",null,{"$f":"IF(Lotsen!A158=\"\",\"\",Lotsen!A158)","v":""},0,0,0,0,null,null,null,null,null,null,null,null,null,null,null,null,null,null,null,null,null,null,null,null,""]
[null,"",null,null,null,"",null,{"$f":"IF(Lotsen!A159=\"\",\"\",Lotsen!A159)","v":""},0,0,0,0,null,null,null,null,null,null,null,null,null,null,null,null,null,null,null,null,null,null,null,null,""]
[null,"",null,null,null,"",null,{"$f":"IF(Lotsen!A160=\"\",\"\",Lotsen!A160)","v":""},0,0,0,0,null,null,null,null,null,null,null,null,null,null,null,null,null,null,null,null,null,null,null,null,""]
[null,"",null,null,null,"",null,{"$f":"IF(Lotsen!A161=\"\",\"\",Lotsen!A161)","v":""},0,0,0,0,null,null,null,null,null,null,null,null,null,null,null,null,null,null,null,null,null,null,null,null,""]
[null,"",null,null,null,"",null,{"$f":"IF(Lotsen!A162=\"\",\"\",Lotsen!A162)","v":""},0,0,0,0,null,null,null,null,null,null,null,null,null,null,null,null,null,null,null,null,null,null,null,null,""]
[null,"",null,null,null,"",null,{"$f":"IF(Lotsen!A163=\"\",\"\",Lotsen!A163)","v":""},0,0,0,0,null,null,null,null,null,null,null,null,null,null,null,null,null,null,null,null,null,null,null,null,""]
[null,"",null,null,null,"",null,{"$f":"IF(Lotsen!A164=\"\",\"\",Lotsen!A164)","v":""},0,0,0,0,null,null,null,null,null,null,null,null,null,null,null,null,null,null,null,null,null,null,null,null,""]
[null,"",null,null,null,"",null,{"$f":"IF(Lotsen!A165=\"\",\"\",Lotsen!A165)","v":""},0,0,0,0,null,null,null,null,null,null,null,null,null,null,null,null,null,null,null,null,null,null,null,null,""]
[null,"",null,null,null,"",null,{"$f":"IF(Lotsen!A166=\"\",\"\",Lotsen!A166)","v":""},0,0,0,0,null,null,null,null,null,null,null,null,null,null,null,null,null,null,null,null,null,null,null,null,""]
[null,"",null,null,null,"",null,{"$f":"IF(Lotsen!A167=\"\",\"\",Lotsen!A167)","v":""},0,0,0,0,null,null,null,null,null,null,null,null,null,null,null,null,null,null,null,null,null,null,null,null,""]
[null,"",null,null,null,"",null,{"$f":"IF(Lotsen!A168=\"\",\"\",Lotsen!A168)","v":""},0,0,0,0,null,null,null,null,null,null,null,null,null,null,null,null,null,null,null,null,null,null,null,null,""]
[null,"",null,null,null,"",null,{"$f":"IF(Lotsen!A169=\"\",\"\",Lotsen!A169)","v":""},0,0,0,0,null,null,null,null,null,null,null,null,null,null,null,null,null,null,null,null,null,null,null,null,""]
[null,"",null,null,null,"",null,{"$f":"IF(Lotsen!A170=\"\",\"\",Lotsen!A170)","v":""},0,0,0,0,null,null,null,null,null,null,null,null,null,null,null,null,null,null,null,null,null,null,null,null,""]
[null,"",null,null,null,"",null,{"$f":"IF(Lotsen!A171=\"\",\"\",Lotsen!A171)","v":""},0,0,0,0,null,null,null,null,null,null,null,null,null,null,null,null,null,null,null,null,null,null,null,null,""]
[null,"",null,null,null,"",null,{"$f":"IF(Lotsen!A172=\"\",\"\",Lotsen!A172)","v":""},0,0,0,0,null,null,null,null,null,null,null,null,null,null,null,null,null,null,null,null,null,null,null,null,""]
[null,"",null,null,null,"",null,{"$f":"IF(Lotsen!A173=\"\",\"\",Lotsen!A173)","v":""},0,0,0,0,null,null,null,null,null,null,null,null,null,null,null,null,null,null,null,null,null,null,null,null,""]
[null,"",null,null,null,"",null,{"$f":"IF(Lotsen!A174=\"\",\"\",Lotsen!A174)","v":""},0,0,0,0,null,null,null,null,null,null,null,null,null,null,null,null,null,null,null,null,null,null,null,null,""]
[null,"",null,null,null,"",null,{"$f":"IF(Lotsen!A175=\"\",\"\",Lotsen!A175)","v":""},0,0,0,0,null,null,null,null,null,null,null,null,null,null,null,null,null,null,null,null,null,null,null,null,""]
[null,"",null,null,null,"",null,{"$f":"IF(Lotsen!A176=\"\",\"\",Lotsen!A176)","v":""},0,0,0,0,null,null,null,null,null,null,null,null,null,null,null,null,null,null,null,null,null,null,null,null,""]
[null,"",null,null,null,"",null,{"$f":"IF(Lotsen!A177=\"\",\"\",Lotsen!A177)","v":""},0,0,0,0,null,null,null,null,null,null,null,null,null,null,null,null,null,null,null,null,null,null,null,null,""]
[null,"",null,null,null,"",null,{"$f":"IF(Lotsen!A178=\"\",\"\",Lotsen!A178)","v":""},0,0,0,0,null,null,null,null,null,null,null,null,null,null,null,null,null,null,null,null,null,null,null,null,""]
[null,"",null,null,null,"",null,{"$f":"IF(Lotsen!A179=\"\",\"\",Lotsen!A179)","v":""},0,0,0,0,null,null,null,null,null,null,null,null,null,null,null,null,null,null,null,null,null,null,null,null,""]
[null,"",null,null,null,"",null,{"$f":"IF(Lotsen!A180=\"\",\"\",Lotsen!A180)","v":""},0,0,0,0,null,null,null,null,null,null,null,null,null,null,null,null,null,null,null,null,null,null,null,null,""]
[null,"",null,null,null,"",null,{"$f":"IF(Lotsen!A181=\"\",\"\",Lotsen!A181)","v":""},0,0,0,0,null,null,null,null,null,null,null,null,null,null,null,null,null,null,null,null,null,null,null,null,""]
[null,"",null,null,null,"",null,{"$f":"IF(Lotsen!A182=\"\",\"\",Lotsen!A182)","v":""},0,0,0,0,null,null,null,null,null,null,null,null,null,null,null,null,null,null,null,null,null,null,null,null,""]
[null,"",null,null,null,"",null,{"$f":"IF(Lotsen!A183=\"\",\"\",Lotsen!A183)","v":""},0,0,0,0,null,null,null,null,null,null,null,null,null,null,null,null,null,null,null,null,null,null,null,null,""]
[null,"",null,null,null,"",null,{"$f":"IF(Lotsen!A184=\"\",\"\",Lotsen!A184)","v":""},0,0,0,0,null,null,null,null,null,null,null,null,null,null,null,null,null,null,null,null,null,null,null,null,""]
[null,"",null,null,null,"",null,{"$f":"IF(Lotsen!A185=\"\",\"\",Lotsen!A185)","v":""},0,0,0,0,null,null,null,null,null,null,null,null,null,null,null,null,null,null,null,null,null,null,null,null,""]
[null,"",null,null,null,"",null,{"$f":"IF(Lotsen!A186=\"\",\"\",Lotsen!A186)","v":""},0,0,0,0,null,null,null,null,null,null,null,null,null,null,null,null,null,null,null,null,null,null,null,null,""]
[null,"",null,null,null,"",null,{"$f":"IF(Lotsen!A187=\"\",\"\",Lotsen!A187)","v":""},0,0,0,0,null,null,null,null,null,null,null,null,null,null,null,null,null,null,null,null,null,null,null,null,""]
[null,"",null,null,null,"",null,{"$f":"IF(Lotsen!A188=\"\",\"\",Lotsen!A188)","v":""},0,0,0,0,null,null,null,null,null,null,null,null,null,null,null,null,null,null,null,null,null,null,null,null,""]
[null,"",null,null,null,"",null,{"$f":"IF(Lotsen!A189=\"\",\"\",Lotsen!A189)","v":""},0,0,0,0,null,null,null,null,null,null,null,null,null,null,null,null,null,null,null,null,null,null,null,null,""]
[null,"",null,null,null,"",null,{"$f":"IF(Lotsen!A190=\"\",\"\",Lotsen!A190)","v":""},0,0,0,0,null,null,null,null,null,null,null,null,null,null,null,null,null,null,null,null,null,null,null,null,""]
[null,"",null,null,null,"",null,{"$f":"IF(Lotsen!A191=\"\",\"\",Lotsen!A191)","v":""},0,0,0,0,null,null,null,null,null,null,null,null,null,null,null,null,null,null,null,null,null,null,null,null,""]
[null,"",null,null,null,"",null,{"$f":"IF(Lotsen!A192=\"\",\"\",Lotsen!A192)","v":""},0,0,0,0,null,null,null,null,null,null,null,null,null,null,null,null,null,null,null,null,null,null,null,null,""]
[null,"",null,null,null,"",null,{"$f":"IF(Lotsen!A193=\"\",\"\",Lotsen!A193)","v":""},0,0,0,0,null,null,null,null,null,null,null,null,null,null,null,null,null,null,null,null,null,null,null,null,""]
[null,"",null,null,null,"",null,{"$f":"IF(Lotsen!A194=\"\",\"\",Lotsen!A194)","v":""},0,0,0,0,null,null,null,null,null,null,null,null,null,null,null,null,null,null,null,null,null,null,null,null,""]
[null,"",null,null,null,{"$f":"IF(D198=\"\",\"\",E198-1)","v":""},null,{"$f":"IF(Lotsen!A195=\"\",\"\",Lotsen!A195)","v":""},{"$f":"SUMIF($C$5:$C$213,H198,$F$5:$F$213)+L198","v":0},0,{"$f":"IF(J198>0,I198-60,IF(J198=0,I198,0))","v":0},0,null,null,null,null,null,null,null,null,null,null,null,null,null,null,null,null,null,null,null,null,{"$f":"H198","v":""}]
[null,{"$f":"IF(C199=\"\",\"\",B198+1)","v":""},null,null,null,"",null,{"$f":"IF(Lotsen!A196=\"\",\"\",Lotsen!A196)","v":""},0,0,0,0,null,null,null,null,null,null,null,null,null,null,null,null,null,null,null,null,null,null,null,null,""]
[null,"",null,null,null,"",null,{"$f":"IF(Lotsen!A197=\"\",\"\",Lotsen!A197)","v":""},0,0,0,0,null,null,null,null,null,null,null,null,null,null,null,null,null,null,null,null,null,null,null,null,""]
[null,"",null,null,null,"",null,{"$f":"IF(Lotsen!A198=\"\",\"\",Lotsen!A198)","v":""},0,{"$f":"IF(I201>=60,1,0)","v":0},0,0,null,null,null,null,null,null,null,null,null,null,null,null,null,null,null,null,null,null,null,null,""]
[null,"",null,null,null,"",null,{"$f":"IF(Lotsen!A199=\"\",\"\",Lotsen!A199)","v":""},0,0,0,0,null,null,null,null,null,null,null,null,null,null,null,null,null,null,null,null,null,null,null,null,""]
[null,"",null,null,null,"",null,{"$f":"IF(Lotsen!A200=\"\",\"\",Lotsen!A200)","v":""},0,0,0,0,null,null,null,null,null,null,null,null,null,null,null,null,null,null,null,null,null,null,null,null,""]
[null,"",null,null,null,"",null,{"$f":"IF(Lotsen!A201=\"\",\"\",Lotsen!A201)","v":""},0,0,0,0,null,null,null,null,null,null,null,null,null,null,null,null,null,null,null,null,null,null,null,null,""]
[null,"",null,null,null,"",null,{"$f":"IF(Lotsen!A202=\"\",\"\",Lotsen!A202)","v":""},0,0,0,0,null,null,null,null,null,null,null,null,null,null,null,null,null,null,null,null,null,null,null,null,""]
[null,"",null,null,null,"",null,{"$f":"IF(Lotsen!A203=\"\",\"\",Lotsen!A203)","v":""},0,0,0,0,null,null,null,null,null,null,null,null,null,null,null,null,null,null,null,null,null,null,null,null,""]
[null,"",null,null,null,"",null,{"$f":"IF(Lotsen!A204=\"\",\"\",Lotsen!A204)","v":""},0,0,0,0,null,null,null,null,null,null,null,null,null,null,null,null,null,null,null,null,null,null,null,null,""]
[null,"",null,null,null,"",null,{"$f":"IF(Lotsen!A205=\"\",\"\",Lotsen!A205)","v":""},0,0,0,0,null,null,null,null,null,null,null,null,null,null,null,null,null,null,null,null,null,null,null,null,""]
[null,"",null,null,null,"",null,{"$f":"IF(Lotsen!A206=\"\",\"\",Lotsen!A206)","v":""},0,0,0,0,null,null,null,null,null,null,null,null,null,null,null,null,null,null,null,null,null,null,null,null,""]
[null,"",null,null,null,"",null,{"$f":"IF(Lotsen!A207=\"\",\"\",Lotsen!A207)","v":""},0,0,0,0,null,null,null,null,null,null,null,null,null,null,null,null,null,null,null,null,null,null,null,null,""]
[null,"",null,null,null,"",null,{"$f":"IF(Lotsen!A208=\"\",\"\",Lotsen!A208)","v":""},0,0,0,0,null,null,null,null,null,null,null,null,null,null,null,null,null,null,null,null,null,null,null,null,""]
[null,"",null,null,null,"",null,{"$f":"IF(Lotsen!A209=\"\",\"\",Lotsen!A209)","v":""},0,0,0,0,null,null,null,null,null,null,null,null,null,null,null,null,null,null,null,null,null,null,null,null,""]
[null,"",null,null,null,"",null,{"$f":"IF(Lotsen!A210=\"\",\"\",Lotsen!A210)","v":""},0,0,0,0,null,null,null,null,null,null,null,null,null,null,null,null,null,null,null,null,null,null,null,null,""]

{"sheet":"Urlaubsauswertung","index":1,"n_rows":212,"n_cols":30,"rows_kept":212,"cut":false,"hidden":false,"merged":[]}
[]
[]
["Namen","U-Tag","Datum",null,"U-Tag","Datum",null,"U-Tag","Datum",null,"U-Tag","Datum",null,"U-Tag","Datum",null,"U-Tag","Datum",null,"U-Tag","Datum",null,"U-Tag","Datum",null,"U-Tag","Datum",null,"U-Tag","Datum"]
[{"$f":"Lotsen!A2","v":1}]
[{"$f":"Lotsen!A3","v":2},null,null,null,null,null,null,"d","Datum",null,"d","Datum",null,"d","Datum",null,"d","Datum",null,"d","Datum",null,"d","Datum",null,"d","Datum",null,"d","Datum"]
[{"$f":"Lotsen!A4","v":3},1,"23.01.25"]
[{"$f":"Lotsen!A5","v":4},1,"23.01.25"]
[{"$f":"Lotsen!A6","v":5}]
[{"$f":"Lotsen!A7","v":6}]
[{"$f":"Lotsen!A8","v":7}]
[{"$f":"Lotsen!A9","v":8}]
[{"$f":"Lotsen!A10","v":9}]
[{"$f":"Lotsen!A11","v":10}]
[{"$f":"Lotsen!A12","v":0}]
[{"$f":"Lotsen!A13","v":0}]
[{"$f":"Lotsen!A14","v":0}]
[{"$f":"Lotsen!A15","v":0}]
[{"$f":"Lotsen!A16","v":0}]
[{"$f":"Lotsen!A17","v":0}]
[{"$f":"Lotsen!A18","v":0}]
[{"$f":"Lotsen!A19","v":0}]
[{"$f":"Lotsen!A20","v":0}]
[{"$f":"Lotsen!A21","v":0}]
[{"$f":"Lotsen!A22","v":0}]
[{"$f":"Lotsen!A23","v":0}]
[{"$f":"Lotsen!A24","v":0}]
[{"$f":"Lotsen!A25","v":0}]
[{"$f":"Lotsen!A26","v":0}]
[{"$f":"Lotsen!A27","v":0}]
[{"$f":"Lotsen!A28","v":0}]
[{"$f":"Lotsen!A29","v":0}]
[{"$f":"Lotsen!A30","v":0}]
[{"$f":"Lotsen!A31","v":0}]
[{"$f":"Lotsen!A32","v":0}]
[{"$f":"Lotsen!A33","v":0}]
[{"$f":"Lotsen!A34","v":0}]
[{"$f":"Lotsen!A35","v":0}]
[{"$f":"Lotsen!A36","v":0}]
[{"$f":"Lotsen!A37","v":0}]
[{"$f":"Lotsen!A38","v":0}]
[{"$f":"Lotsen!A39","v":0}]
[{"$f":"Lotsen!A40","v":0}]
[{"$f":"Lotsen!A41","v":0}]
[{"$f":"Lotsen!A42","v":0}]
[{"$f":"Lotsen!A43","v":0}]
[{"$f":"Lotsen!A44","v":0}]
[{"$f":"Lotsen!A45","v":0}]
[{"$f":"Lotsen!A46","v":0}]
[{"$f":"Lotsen!A47","v":0}]
[{"$f":"Lotsen!A48","v":0}]
[{"$f":"Lotsen!A49","v":0}]
[{"$f":"Lotsen!A50","v":0}]
[{"$f":"Lotsen!A51","v":0}]
[{"$f":"Lotsen!A52","v":0}]
[{"$f":"Lotsen!A53","v":0}]
[{"$f":"Lotsen!A54","v":0}]
[{"$f":"Lotsen!A55","v":0}]
[{"$f":"Lotsen!A56","v":0}]
[{"$f":"Lotsen!A57","v":0}]
[{"$f":"Lotsen!A58","v":0}]
[{"$f":"Lotsen!A59","v":0}]
[{"$f":"Lotsen!A60","v":0}]
[{"$f":"Lotsen!A61","v":0}]
[{"$f":"Lotsen!A62","v":0}]
[{"$f":"Lotsen!A63","v":0}]
[{"$f":"Lotsen!A64","v":0}]
[{"$f":"Lotsen!A65","v":0}]
[{"$f":"Lotsen!A66","v":0}]
[{"$f":"Lotsen!A67","v":0}]
[{"$f":"Lotsen!A68","v":0}]
[{"$f":"Lotsen!A69","v":0}]
[{"$f":"Lotsen!A70","v":0}]
[{"$f":"Lotsen!A71","v":0}]
[{"$f":"Lotsen!A72","v":0}]
[{"$f":"Lotsen!A73","v":0}]
[{"$f":"Lotsen!A74","v":0}]
[{"$f":"Lotsen!A75","v":0}]
[{"$f":"Lotsen!A76","v":0}]
[{"$f":"Lotsen!A77","v":0}]
[{"$f":"Lotsen!A78","v":0}]
[{"$f":"Lotsen!A79","v":0}]
[{"$f":"Lotsen!A80","v":0}]
[{"$f":"Lotsen!A81","v":0}]
[{"$f":"Lotsen!A82","v":0}]
[{"$f":"Lotsen!A83","v":0}]
[{"$f":"Lotsen!A84","v":0}]
[{"$f":"Lotsen!A85","v":0}]
[{"$f":"Lotsen!A86","v":0}]
[{"$f":"Lotsen!A87","v":0}]
[{"$f":"Lotsen!A88","v":0}]
[{"$f":"Lotsen!A89","v":0}]
[{"$f":"Lotsen!A90","v":0}]
[{"$f":"Lotsen!A91","v":0}]
[{"$f":"Lotsen!A92","v":0}]
[{"$f":"Lotsen!A93","v":0}]
[{"$f":"Lotsen!A94","v":0}]
[{"$f":"Lotsen!A95","v":0}]
[{"$f":"Lotsen!A96","v":0}]
[{"$f":"Lotsen!A97","v":0}]
[{"$f":"Lotsen!A98","v":0}]
[{"$f":"Lotsen!A99","v":0}]
[{"$f":"Lotsen!A100","v":0}]
[{"$f":"Lotsen!A101","v":0}]
[{"$f":"Lotsen!A102","v":0}]
[{"$f":"Lotsen!A103","v":0}]
[{"$f":"Lotsen!A104","v":0}]
[{"$f":"Lotsen!A105","v":0}]
[{"$f":"Lotsen!A106","v":0}]
[{"$f":"Lotsen!A107","v":0}]
[{"$f":"Lotsen!A108","v":0}]
[{"$f":"Lotsen!A109","v":0}]
[{"$f":"Lotsen!A110","v":0}]
[{"$f":"Lotsen!A111","v":0}]
[{"$f":"Lotsen!A112","v":0}]
[{"$f":"Lotsen!A113","v":0}]
[{"$f":"Lotsen!A114","v":0}]
[{"$f":"Lotsen!A115","v":0}]
[{"$f":"Lotsen!A116","v":0}]
[{"$f":"Lotsen!A117","v":0}]
[{"$f":"Lotsen!A118","v":0}]
[{"$f":"Lotsen!A119","v":0}]
[{"$f":"Lotsen!A120","v":0}]
[{"$f":"Lotsen!A121","v":0}]
[{"$f":"Lotsen!A122","v":0}]
[{"$f":"Lotsen!A123","v":0}]
[{"$f":"Lotsen!A124","v":0}]
[{"$f":"Lotsen!A125","v":0}]
[{"$f":"Lotsen!A126","v":0}]
[{"$f":"Lotsen!A127","v":0}]
[{"$f":"Lotsen!A128","v":0}]
[{"$f":"Lotsen!A129","v":0}]
[{"$f":"Lotsen!A130","v":0}]
[{"$f":"Lotsen!A131","v":0}]
[{"$f":"Lotsen!A132","v":0}]
[{"$f":"Lotsen!A133","v":0}]
[{"$f":"Lotsen!A134","v":0}]
[{"$f":"Lotsen!A135","v":0}]
[{"$f":"Lotsen!A136","v":0}]
[{"$f":"Lotsen!A137","v":0}]
[{"$f":"Lotsen!A138","v":0}]
[{"$f":"Lotsen!A139","v":0}]
[{"$f":"Lotsen!A140","v":0}]
[{"$f":"Lotsen!A141","v":0}]
[{"$f":"Lotsen!A142","v":0}]
[{"$f":"Lotsen!A143","v":0}]
[{"$f":"Lotsen!A144","v":0}]
[{"$f":"Lotsen!A145","v":0}]
[{"$f":"Lotsen!A146","v":0}]
[{"$f":"Lotsen!A147","v":0}]
[{"$f":"Lotsen!A148","v":0}]
[{"$f":"Lotsen!A149","v":0}]
[{"$f":"Lotsen!A150","v":0}]
[{"$f":"Lotsen!A151","v":0}]
[{"$f":"Lotsen!A152","v":0}]
[{"$f":"Lotsen!A153","v":0}]
[{"$f":"Lotsen!A154","v":0}]
[{"$f":"Lotsen!A155","v":0}]
[{"$f":"Lotsen!A156","v":0}]
[{"$f":"Lotsen!A157","v":0}]
[{"$f":"Lotsen!A158","v":0}]
[{"$f":"Lotsen!A159","v":0}]
[{"$f":"Lotsen!A160","v":0}]
[{"$f":"Lotsen!A161","v":0}]
[{"$f":"Lotsen!A162","v":0}]
[{"$f":"Lotsen!A163","v":0}]
[{"$f":"Lotsen!A164","v":0}]
[{"$f":"Lotsen!A165","v":0}]
[{"$f":"Lotsen!A166","v":0}]
[{"$f":"Lotsen!A167","v":0}]
[{"$f":"Lotsen!A168","v":0}]
[{"$f":"Lotsen!A169","v":0}]
[{"$f":"Lotsen!A170","v":0}]
[{"$f":"Lotsen!A171","v":0}]
[{"$f":"Lotsen!A172","v":0}]
[{"$f":"Lotsen!A173","v":0}]
[{"$f":"Lotsen!A174","v":0}]
[{"$f":"Lotsen!A175","v":0}]
[{"$f":"Lotsen!A176","v":0}]
[{"$f":"Lotsen!A177","v":0}]
[{"$f":"Lotsen!A178","v":0}]
[{"$f":"Lotsen!A179","v":0}]
[{"$f":"Lotsen!A180","v":0}]
[{"$f":"Lotsen!A181","v":0}]
[{"$f":"Lotsen!A182","v":0}]
[{"$f":"Lotsen!A183","v":0}]
[{"$f":"Lotsen!A184","v":0}]
[{"$f":"Lotsen!A185","v":0}]
[{"$f":"Lotsen!A186","v":0}]
[{"$f":"Lotsen!A187","v":0}]
[{"$f":"Lotsen!A188","v":0}]
[{"$f":"Lotsen!A189","v":0}]
[{"$f":"Lotsen!A190","v":0}]
[{"$f":"Lotsen!A191","v":0}]
[{"$f":"Lotsen!A192","v":0}]
[{"$f":"Lotsen!A193","v":0}]
[{"$f":"Lotsen!A194","v":0}]
[{"$f":"Lotsen!A195","v":0}]
[{"$f":"Lotsen!A196","v":0}]
[{"$f":"Lotsen!A197","v":0}]
[{"$f":"Lotsen!A198","v":0}]
[{"$f":"Lotsen!A199","v":0}]
[{"$f":"Lotsen!A200","v":0}]
[{"$f":"Lotsen!A201","v":0}]
[{"$f":"Lotsen!A202","v":0}]
[{"$f":"Lotsen!A203","v":0}]
[{"$f":"Lotsen!A204","v":0}]
[{"$f":"Lotsen!A205","v":0}]
[{"$f":"Lotsen!A206","v":0}]
[{"$f":"Lotsen!A207","v":0}]
[{"$f":"Lotsen!A208","v":0}]
[{"$f":"Lotsen!A209","v":0}]
[{"$f":"Lotsen!A210","v":0}]

{"sheet":"Lotsen","index":2,"n_rows":11,"n_cols":5,"rows_kept":11,"cut":false,"hidden":false,"merged":[[5,4,6,5]]}
[]
[1]
[2]
[3]
[4]
[5,null,null,null,"die ersten 3 Buchstaben reichen"]
[6]
[7]
[8]
[9]
[10]